fUST/lending_fUST_20250304
["ID","MTS","AMOUNT","RATE_DAILY","PERIOD"]
[355217523,1741020639331,-500.0,0.00022768,2]
[355217524,1741020639341,-500.0,0.00022768,2]
[355217525,1741020639352,-500.0,0.00022768,2]
[355217526,1741020639362,-500.0,0.00022768,2]
[355217527,1741020639372,-444.09018901,0.00022768,2]
[355217528,1741020639382,-980.83,0.00022768,2]
[355217529,1741020639392,-500.0,0.00022768,2]
[355217530,1741020639402,-500.0,0.00022768,2]
[355217531,1741020639412,-500.0,0.00022768,2]
[355217532,1741020639425,-500.0,0.00022768,2]
[355217533,1741020639434,-500.0,0.00022768,2]
[355217534,1741020639445,-500.0,0.00022768,2]
[355217535,1741020639455,-500.0,0.00022768,2]
[355217536,1741020639465,-500.0,0.00022768,2]
[355217537,1741020639474,-500.0,0.00022768,2]
[355217538,1741020639484,-516.83566983,0.00022768,2]
[355217539,1741020639494,-352.24029783,0.00022768,2]
[355217541,1741020639673,-267.82307388,0.00022768,2]
[355217542,1741020639683,-500.0,0.00022768,2]
[355217543,1741020639692,-1699.76676801,0.00022768,2]
[355217933,1741020646115,-500.0,0.00022766,2]
[355217935,1741020646125,-500.0,0.00022766,2]
[355217937,1741020646138,-4656.23323199,0.00022768,2]
[355217939,1741020646148,-500.0,0.00022768,2]
[355217941,1741020646157,-500.0,0.00022768,2]
[355217944,1741020646178,-500.0,0.00022768,2]
[355217946,1741020646191,-500.0,0.00022768,2]
[355217948,1741020646201,-500.0,0.00022768,2]
[355217950,1741020646211,-500.0,0.00022768,2]
[355217952,1741020646221,-342.66676801,0.00022768,2]
[355218096,1741021614761,391.54479362,0.00021,4]
[355218098,1741021748643,750.0,0.00021,2]
[355218180,1741021838232,-558.078098,0.00021649,2]
[355218181,1741021838243,-215.663368,0.00021668,2]
[355218182,1741021838253,-553.07595045,0.00022567,2]
[355218184,1741021840497,-915.72885072,0.00022567,2]
[355218185,1741021840507,-84.27114928,0.00022664,2]
[355218186,1741021840523,-215.72885072,0.00022664,2]
[355218187,1741021840533,-145.39514928,0.00022665,2]
[355218243,1741021843489,-987.61196619,0.00022665,2]
[355218314,1741021946265,451.45357887,0.00020565,2]
[355218320,1741022247518,150.48452629,0.00020565,2]
[355218325,1741022444211,416.5453381,0.00021,2]
[355218326,1741022448116,416.5453381,0.0002,2]
[355218330,1741022549156,250.80754381,0.00020565,2]
[355218337,1741022850682,167.20502921,0.000189,2]
[355218345,1741022875115,1775.19174779,0.00016,2]
[355218913,1741022918958,20512.43415896,0.000145,2]
[355218979,1741023039736,-416.5453381,0.000213,2]
[355218981,1741023039746,-416.5453381,0.000214,2]
[355218983,1741023039756,-351.0919571,0.000215,2]
[355218985,1741023039765,-416.5453381,0.00022,2]
[355218987,1741023039774,-706.41285824,0.00022,2]
[355218989,1741023039783,-416.5453381,0.000221,2]
[355218991,1741023039793,-416.5453381,0.000223,2]
[355218993,1741023039803,-1285.20420105,0.00022466,2]
[355218995,1741023039813,-416.5453381,0.000225,2]
[355218996,1741023039824,-300.0,0.00022563,2]
[355218997,1741023039834,-350.43555847,0.00022564,5]
[355218998,1741023039843,-1359.08559438,0.00022564,5]
[355218999,1741023039852,-14382.31,0.00022564,2]
[355219000,1741023039861,-629.79,0.00022564,2]
[355219001,1741023039871,-500.0,0.00022564,2]
[355219003,1741023039880,-500.0,0.00022564,2]
[355219005,1741023039890,-500.0,0.00022564,2]
[355219006,1741023039902,-512.14723672,0.00022564,2]
[355219007,1741023039911,-269.67195868,0.00022564,2]
[355219008,1741023039920,-500.0,0.00022564,2]
[355219009,1741023039930,-500.0,0.00022564,2]
[355219010,1741023039941,-500.0,0.00022564,2]
[355219011,1741023039950,-500.0,0.00022564,2]
[355219012,1741023039959,-500.0,0.00022564,2]
[355219013,1741023039969,-162.88753966,0.00022565,2]
[355219014,1741023039981,-500.0,0.00022565,2]
[355219015,1741023039991,-181.73373756,0.00022565,2]
[355219016,1741023040001,-1121.5,0.00022565,2]
[355219017,1741023040011,-500.0,0.00022565,2]
[355219018,1741023040021,-500.0,0.00022565,2]
[355219019,1741023040031,-500.0,0.00022565,2]
[355219020,1741023040040,-500.0,0.00022565,2]
[355219021,1741023040050,-829.56,0.00022565,2]
[355219022,1741023040060,-815.41,0.00022565,2]
[355219023,1741023040069,-500.0,0.00022565,2]
[355219025,1741023040082,-500.0,0.00022565,2]
[355219026,1741023040091,-1065.37,0.00022565,2]
[355219027,1741023040100,-589.98,0.00022565,2]
[355219028,1741023040110,-1162.96,0.00022565,2]
[355219029,1741023040119,-606.63,0.00022565,2]
[355219030,1741023040129,-1042.5,0.00022565,2]
[355219031,1741023040139,-785.42,0.00022565,2]
[355219032,1741023040148,-1277.73,0.00022565,2]
[355219033,1741023040158,-500.0,0.00022565,2]
[355219034,1741023040167,-500.0,0.00022565,2]
[355219036,1741023040177,-627.34,0.00022565,2]
[355219038,1741023040186,-500.0,0.00022565,2]
[355219040,1741023040195,-500.0,0.00022565,2]
[355219042,1741023040205,-500.0,0.00022565,2]
[355219043,1741023040214,-500.0,0.00022565,2]
[355219044,1741023040223,-500.0,0.00022565,2]
[355219045,1741023040234,-500.0,0.00022565,2]
[355219046,1741023040243,-500.0,0.00022565,2]
[355219047,1741023040254,-500.0,0.00022565,2]
[355219048,1741023040264,-500.0,0.00022565,2]
[355219049,1741023040273,-500.0,0.00022565,2]
[355219050,1741023040283,-176.84551096,0.00022565,2]
[355219051,1741023040690,-141.82417853,0.00022565,2]
[355219052,1741023040700,-500.0,0.00022565,2]
[355219053,1741023040710,-500.0,0.00022565,2]
[355219054,1741023040719,-500.0,0.00022565,2]
[355219055,1741023040728,-500.0,0.00022565,2]
[355219056,1741023040738,-500.0,0.00022565,2]
[355219057,1741023040747,-500.0,0.00022566,2]
[355219058,1741023040757,-500.0,0.00022566,2]
[355219059,1741023040767,-500.0,0.00022566,2]
[355219060,1741023040776,-537.78,0.00022566,2]
[355219061,1741023040786,-500.0,0.00022566,2]
[355219062,1741023040795,-500.0,0.00022566,2]
[355219063,1741023040805,-655.52,0.00022566,2]
[355219064,1741023040814,-512.848137,0.00022566,2]
[355219065,1741023040823,-500.0,0.00022566,2]
[355219066,1741023040838,-500.0,0.00022566,2]
[355219067,1741023040847,-500.0,0.00022566,2]
[355219068,1741023040856,-500.0,0.00022566,2]
[355219069,1741023040866,-500.0,0.00022566,2]
[355219070,1741023040875,-500.0,0.00022566,2]
[355219071,1741023040885,-500.0,0.00022566,2]
[355219072,1741023040896,-196.17086879,0.00022566,2]
[355219073,1741023040907,-500.0,0.00022566,2]
[355219074,1741023040916,-500.0,0.00022566,2]
[355219075,1741023040926,-500.0,0.00022566,2]
[355219076,1741023040936,-500.0,0.00022566,2]
[355219077,1741023040945,-500.0,0.00022566,2]
[355219078,1741023040955,-168.66805943,0.00022566,2]
[355219079,1741023040964,-500.0,0.00022566,2]
[355219080,1741023040974,-500.0,0.00022566,2]
[355219081,1741023040984,-939.96,0.00022566,2]
[355219082,1741023040993,-500.0,0.00022566,2]
[355219083,1741023041003,-500.0,0.00022566,2]
[355219084,1741023041013,-500.0,0.00022566,2]
[355219085,1741023041022,-500.0,0.00022566,2]
[355219086,1741023041032,-500.0,0.00022566,2]
[355219087,1741023041041,-642.091548,0.00022566,2]
[355219088,1741023041050,-500.0,0.00022566,2]
[355219089,1741023041060,-6091.17,0.00022566,2]
[355219090,1741023041069,-500.0,0.00022566,2]
[355219091,1741023041079,-619.97095694,0.00022566,2]
[355219092,1741023041088,-500.0,0.00022566,2]
[355219093,1741023041098,-500.0,0.00022566,2]
[355219094,1741023041107,-500.0,0.00022566,2]
[355219095,1741023041117,-639.64558471,0.00022566,2]
[355219096,1741023041126,-500.0,0.00022566,2]
[355219097,1741023041135,-500.0,0.00022566,2]
[355219098,1741023041145,-564.69021488,0.00022566,2]
[355219099,1741023041154,-500.0,0.00022566,2]
[355219100,1741023041163,-500.0,0.00022566,2]
[355219101,1741023041173,-512.55337042,0.00022566,2]
[355219102,1741023041182,-512.18505059,0.00022566,2]
[355219103,1741023041192,-500.0,0.00022566,2]
[355219104,1741023041201,-767.04,0.00022566,2]
[355219105,1741023041211,-500.0,0.00022566,2]
[355219106,1741023041220,-500.0,0.00022566,2]
[355219107,1741023041229,-500.0,0.00022566,2]
[355219108,1741023041239,-153.97857876,0.00022566,2]
[355219110,1741023041248,-158.50306,0.00022566,7]
[355219112,1741023041257,-500.0,0.00022566,2]
[355219114,1741023041267,-500.0,0.00022566,2]
[355219116,1741023041277,-500.0,0.00022566,2]
[355219118,1741023041286,-500.0,0.00022566,2]
[355219135,1741023041435,-500.0,0.00022566,2]
[355219137,1741023041445,-19313.53,0.00022566,2]
[355219139,1741023041454,-500.0,0.00022566,2]
[355219141,1741023041463,-500.0,0.00022566,2]
[355219143,1741023041473,-500.0,0.00022566,2]
[355219145,1741023041483,-500.0,0.00022566,2]
[355219147,1741023041492,-500.0,0.00022566,2]
[355219149,1741023041501,-500.0,0.00022566,2]
[355219151,1741023041510,-620.1,0.00022566,2]
[355219153,1741023041519,-448.21791179,0.00022566,2]
[355219155,1741023041529,-511.5258399,0.00022566,2]
[355219157,1741023041538,-500.0,0.00022566,2]
[355219159,1741023041547,-500.0,0.00022566,2]
[355219161,1741023041557,-1244.25,0.00022566,2]
[355219163,1741023041566,-500.0,0.00022566,2]
[355219165,1741023041575,-590.31741162,0.00022566,2]
[355219167,1741023041587,-151.0,0.00022567,7]
[355219169,1741023041596,-153.688855,0.00022567,7]
[355219171,1741023041605,-211.511467,0.00022567,7]
[355219173,1741023041615,-211.511467,0.00022567,7]
[355219175,1741023041625,-20359.85349029,0.00022567,2]
[355219177,1741023041634,-3000.0,0.00022567,2]
[355219179,1741023041643,-500.0,0.00022649,2]
[355219181,1741023041653,-3726.10809185,0.0002265,2]
[355219183,1741023041662,-500.0,0.00022663,2]
[355219185,1741023041671,-500.0,0.00022663,2]
[355219187,1741023041680,-500.0,0.00022663,2]
[355219189,1741023041690,-500.0,0.00022664,2]
[355219191,1741023041700,-500.0,0.00022664,2]
[355219193,1741023041709,-513.02348178,0.00022664,2]
[355219195,1741023041719,-501.17,0.00022664,2]
[355219197,1741023041728,-500.0,0.00022664,2]
[355219200,1741023041738,-500.0,0.00022664,2]
[355219202,1741023041747,-500.0,0.00022664,2]
[355219204,1741023041757,-500.0,0.00022664,2]
[355219206,1741023041767,-500.0,0.00022664,2]
[355219208,1741023041776,-500.0,0.00022664,2]
[355219210,1741023041785,-531.78157518,0.00022664,2]
[355219212,1741023041795,-536.38042251,0.00022664,2]
[355219214,1741023041806,-500.0,0.00022664,2]
[355219215,1741023041815,-500.0,0.00022664,2]
[355219218,1741023041825,-500.0,0.00022664,2]
[355219219,1741023041837,-500.0,0.00022664,2]
[355219222,1741023041847,-819.03,0.00022664,2]
[355219224,1741023041857,-500.0,0.00022664,2]
[355219226,1741023041866,-500.0,0.00022664,2]
[355219228,1741023041875,-500.0,0.00022664,2]
[355219229,1741023041885,-500.0,0.00022664,2]
[355219231,1741023041897,-500.0,0.00022664,2]
[355219233,1741023041909,-209.97664959,0.00022664,2]
[355219235,1741023041919,-500.0,0.00022664,2]
[355219237,1741023041929,-507.57208371,0.00022664,2]
[355219239,1741023041940,-510.92194778,0.00022664,2]
[355219241,1741023041949,-480.93401363,0.00022664,2]
[355219244,1741023041962,-319.44750342,0.00022664,2]
[355219245,1741023041971,-500.0,0.00022664,2]
[355219248,1741023041983,-508.0926283,0.00022664,2]
[355219250,1741023041993,-500.0,0.00022664,2]
[355219251,1741023042003,-500.0,0.00022664,2]
[355219253,1741023042012,-500.0,0.00022664,2]
[355219255,1741023042021,-500.0,0.00022664,2]
[355219258,1741023042031,-500.0,0.00022664,2]
[355219260,1741023042041,-508.15680173,0.00022664,2]
[355219261,1741023042050,-500.0,0.00022664,2]
[355219263,1741023042060,-500.0,0.00022664,2]
[355219265,1741023042070,-500.0,0.00022664,2]
[355219267,1741023042081,-508.7325279,0.00022664,2]
[355219269,1741023042091,-151.0,0.00022664,7]
[355219271,1741023042100,-507.54514078,0.00022664,2]
[355219273,1741023042109,-500.0,0.00022664,2]
[355219275,1741023042119,-500.0,0.00022664,2]
[355219278,1741023042128,-537.96944741,0.00022664,2]
[355219279,1741023042137,-500.0,0.00022664,2]
[355219281,1741023042147,-500.84471306,0.00022664,2]
[355219283,1741023042156,-500.0,0.00022664,2]
[355219285,1741023042165,-500.0,0.00022664,2]
[355219287,1741023042174,-500.0,0.00022664,2]
[355219289,1741023042184,-500.0,0.00022664,2]
[355219291,1741023042193,-500.0,0.00022664,2]
[355219293,1741023042204,-355.318352,0.00022664,2]
[355219295,1741023042213,-500.0,0.00022664,2]
[355219297,1741023042222,-365.29426327,0.00022664,2]
[355219299,1741023042231,-500.0,0.00022664,2]
[355219301,1741023042240,-500.0,0.00022664,2]
[355219303,1741023042249,-500.0,0.00022664,2]
[355219305,1741023042258,-500.0,0.00022664,2]
[355219308,1741023042268,-500.0,0.00022664,2]
[355219310,1741023042277,-500.0,0.00022664,2]
[355219312,1741023042286,-500.0,0.00022664,2]
[355219314,1741023042296,-508.72228827,0.00022664,2]
[355219316,1741023042306,-500.0,0.00022664,2]
[355219317,1741023042315,-500.0,0.00022664,2]
[355219319,1741023042324,-505.91260584,0.00022664,2]
[355219321,1741023042335,-500.0,0.00022664,2]
[355219323,1741023042344,-222.91349804,0.00022664,2]
[355219325,1741023042353,-500.0,0.00022664,2]
[355219327,1741023042362,-513.03680554,0.00022664,2]
[355219329,1741023042371,-506.8747885,0.00022664,2]
[355219331,1741023042381,-521.27111482,0.00022664,2]
[355219333,1741023042390,-500.0,0.00022664,2]
[355219335,1741023042400,-1214.65,0.00022664,2]
[355219337,1741023042409,-510.29270413,0.00022664,2]
[355219339,1741023042422,-500.0,0.00022664,2]
[355219341,1741023042431,-250.0,0.00022664,2]
[355219343,1741023042440,-515.66890733,0.00022664,2]
[355219345,1741023042449,-506.96758714,0.00022664,2]
[355219347,1741023042459,-500.0,0.00022664,2]
[355219349,1741023042468,-500.0,0.00022664,2]
[355219351,1741023042477,-500.0,0.00022664,2]
[355219353,1741023042487,-527.41102378,0.00022664,2]
[355219355,1741023042496,-508.92738144,0.00022664,2]
[355219357,1741023042506,-500.0,0.00022664,2]
[355219359,1741023042515,-501.45497165,0.00022664,2]
[355219361,1741023042524,-501.60981499,0.00022664,2]
[355219363,1741023042533,-275.883508,0.00022664,7]
[355219365,1741023042543,-500.0,0.00022664,2]
[355219367,1741023042552,-503.44263145,0.00022664,2]
[355219369,1741023042561,-500.0,0.00022664,2]
[355219371,1741023042570,-500.0,0.00022664,2]
[355219373,1741023042580,-500.0,0.00022664,2]
[355219375,1741023042590,-500.0,0.00022664,2]
[355219377,1741023042598,-151.0,0.00022664,7]
[355219380,1741023042609,-500.0,0.00022664,2]
[355219382,1741023042618,-500.0,0.00022664,2]
[355219384,1741023042627,-500.0,0.00022664,2]
[355219386,1741023042636,-500.0,0.00022664,2]
[355219388,1741023042646,-500.0,0.00022664,2]
[355219390,1741023042655,-500.0,0.00022664,2]
[355219392,1741023042664,-503.01561642,0.00022664,2]
[355219394,1741023042674,-500.0,0.00022664,2]
[355219396,1741023042683,-510.87504523,0.00022664,2]
[355219398,1741023042692,-500.0,0.00022664,2]
[355219399,1741023042701,-500.0,0.00022664,2]
[355219402,1741023042712,-838.91,0.00022664,2]
[355219403,1741023042721,-500.0,0.00022664,2]
[355219405,1741023042730,-500.0,0.00022664,2]
[355219407,1741023042739,-500.0,0.00022664,2]
[355219409,1741023042748,-511.68903175,0.00022664,2]
[355219411,1741023042757,-151.0,0.00022664,7]
[355219413,1741023042766,-500.0,0.00022664,2]
[355219415,1741023042776,-500.0,0.00022664,2]
[355219417,1741023042785,-500.0,0.00022664,2]
[355219419,1741023042794,-500.0,0.00022664,2]
[355219421,1741023042803,-500.0,0.00022664,2]
[355219423,1741023042813,-330.13969947,0.00022664,2]
[355219425,1741023042822,-500.0,0.00022664,2]
[355219427,1741023042833,-471.6910611,0.00022664,2]
[355219429,1741023042842,-500.0,0.00022664,2]
[355219431,1741023042851,-500.0,0.00022664,2]
[355219433,1741023042861,-500.0,0.00022664,2]
[355219435,1741023042870,-504.97798111,0.00022664,2]
[355219437,1741023042880,-397.143512,0.00022664,7]
[355219440,1741023042890,-397.143512,0.00022664,7]
[355219441,1741023042904,-397.143512,0.00022664,7]
[355219444,1741023042914,-500.0,0.00022664,2]
[355219446,1741023042927,-506.59184356,0.00022664,2]
[355219448,1741023042936,-151.0,0.00022664,7]
[355219450,1741023042946,-151.0,0.00022664,7]
[355219452,1741023042955,-151.0,0.00022664,7]
[355219454,1741023042964,-397.143512,0.00022664,7]
[355219457,1741023042974,-397.143512,0.00022664,7]
[355219459,1741023042986,-397.143512,0.00022664,7]
[355219461,1741023042996,-500.0,0.00022664,2]
[355219463,1741023043005,-164.366722,0.00022664,7]
[355219464,1741023043014,-500.0,0.00022664,2]
[355219466,1741023043024,-500.0,0.00022664,2]
[355219468,1741023043033,-500.0,0.00022664,2]
[355219470,1741023043043,-500.0,0.00022664,2]
[355219472,1741023043052,-500.0,0.00022664,2]
[355219474,1741023043061,-500.0,0.00022664,2]
[355219476,1741023043070,-500.0,0.00022664,2]
[355219479,1741023043081,-500.0,0.00022664,2]
[355219480,1741023043090,-197.3886433,0.00022664,2]
[355219482,1741023043100,-515.76447048,0.00022664,2]
[355219484,1741023043109,-535.82659473,0.00022664,2]
[355219485,1741023043119,-500.0,0.00022664,2]
[355219486,1741023043128,-503.70847964,0.00022664,2]
[355219487,1741023043137,-500.0,0.00022664,2]
[355219488,1741023043146,-500.0,0.00022664,2]
[355219489,1741023043156,-511.01841702,0.00022664,2]
[355219490,1741023043165,-500.0,0.00022664,2]
[355219491,1741023043174,-505.44262111,0.00022664,2]
[355219492,1741023043184,-500.0,0.00022664,2]
[355219494,1741023043194,-508.06760488,0.00022664,2]
[355219495,1741023043203,-500.0,0.00022664,2]
[355219496,1741023043212,-500.0,0.00022664,2]
[355219497,1741023043222,-720.31,0.00022664,2]
[355219498,1741023043231,-500.0,0.00022664,2]
[355219499,1741023043240,-500.0,0.00022664,2]
[355219500,1741023043250,-500.0,0.00022664,2]
[355219501,1741023043259,-337.31746235,0.00022664,2]
[355219502,1741023043268,-500.0,0.00022664,2]
[355219503,1741023043278,-954.17,0.00022664,2]
[355219504,1741023043287,-505.84993557,0.00022664,2]
[355219505,1741023043296,-588.75,0.00022664,2]
[355219506,1741023043307,-500.0,0.00022664,2]
[355219507,1741023043317,-483.08054946,0.00022664,2]
[355219508,1741023043327,-500.0,0.00022664,2]
[355219510,1741023043338,-506.86262922,0.00022664,2]
[355219512,1741023043347,-500.0,0.00022664,2]
[355219514,1741023043357,-211.511467,0.00022664,7]
[355219516,1741023043366,-211.511467,0.00022664,7]
[355219518,1741023043376,-211.511467,0.00022664,7]
[355219520,1741023043385,-211.511467,0.00022664,7]
[355219522,1741023043394,-500.0,0.00022664,2]
[355219524,1741023043404,-211.511467,0.00022664,7]
[355219526,1741023043413,-211.511467,0.00022664,7]
[355219528,1741023043423,-211.511467,0.00022664,7]
[355219530,1741023043432,-211.511467,0.00022664,7]
[355219532,1741023043441,-500.0,0.00022664,2]
[355219534,1741023043451,-500.0,0.00022664,2]
[355219536,1741023043460,-512.15694133,0.00022664,2]
[355219538,1741023043469,-500.0,0.00022664,2]
[355219540,1741023043479,-505.14550085,0.00022664,2]
[355219542,1741023043488,-500.0,0.00022664,2]
[355219545,1741023043498,-500.0,0.00022664,2]
[355219547,1741023043507,-510.09323138,0.00022664,2]
[355219549,1741023043517,-212.935227,0.00022665,7]
[355219551,1741023043526,-151.0,0.00022665,7]
[355219552,1741023043536,-154.418126,0.00022665,7]
[355219555,1741023043546,-180.046751,0.00022665,7]
[355219557,1741023043556,-155.328247,0.00022665,7]
[355219559,1741023043565,-160.173248,0.00022665,7]
[355219561,1741023043575,-500.0,0.00022665,2]
[355219563,1741023043588,-500.0,0.00022665,2]
[355219565,1741023043598,-500.0,0.00022665,2]
[355219567,1741023043607,-151.0,0.00022665,7]
[355219569,1741023043617,-151.0,0.00022665,7]
[355219571,1741023043626,-151.0,0.00022665,7]
[355219573,1741023043635,-500.0,0.00022665,2]
[355219575,1741023043644,-500.0,0.00022665,2]
[355219577,1741023043654,-500.0,0.00022665,2]
[355219579,1741023043663,-500.0,0.00022665,2]
[355219581,1741023043672,-500.0,0.00022665,2]
[355219583,1741023043682,-500.0,0.00022665,2]
[355219585,1741023043691,-500.0,0.00022665,2]
[355219587,1741023043701,-500.0,0.00022665,2]
[355219589,1741023043710,-151.0,0.00022665,7]
[355219591,1741023043720,-508.8447992,0.00022665,2]
[355219593,1741023043730,-500.0,0.00022665,2]
[355219595,1741023043740,-500.0,0.00022665,2]
[355219597,1741023043749,-500.0,0.00022665,2]
[355219599,1741023043759,-500.0,0.00022665,2]
[355219601,1741023043768,-500.0,0.00022665,2]
[355219603,1741023043777,-500.0,0.00022665,2]
[355219605,1741023043787,-525.18958054,0.00022665,2]
[355219607,1741023043796,-500.0,0.00022665,2]
[355219609,1741023043805,-500.0,0.00022665,2]
[355219611,1741023043815,-500.0,0.00022665,2]
[355219613,1741023043825,-500.0,0.00022665,2]
[355219617,1741023043837,-500.0,0.00022665,2]
[355219620,1741023043847,-512.97704094,0.00022665,2]
[355219623,1741023043856,-500.0,0.00022665,2]
[355219625,1741023043865,-1156.86,0.00022665,2]
[355219629,1741023043876,-500.0,0.00022665,2]
[355219654,1741023044002,-500.0,0.00022665,2]
[355219656,1741023044012,-500.0,0.00022665,2]
[355219658,1741023044021,-500.0,0.00022665,2]
[355219660,1741023044031,-500.0,0.00022665,2]
[355219662,1741023044041,-397.143512,0.00022665,7]
[355219664,1741023044050,-397.143512,0.00022665,7]
[355219666,1741023044059,-508.47013716,0.00022665,2]
[355219668,1741023044069,-151.0,0.00022665,7]
[355219670,1741023044078,-151.0,0.00022665,7]
[355219672,1741023044091,-397.143512,0.00022665,7]
[355219674,1741023044100,-397.143512,0.00022665,7]
[355219676,1741023044110,-515.54736379,0.00022665,2]
[355219678,1741023044120,-491.24412036,0.00022665,2]
[355219680,1741023044129,-500.0,0.00022665,2]
[355219682,1741023044139,-500.0,0.00022665,2]
[355219684,1741023044148,-211.511467,0.00022665,7]
[355219686,1741023044158,-211.511467,0.00022665,7]
[355219689,1741023044167,-500.0,0.00022665,2]
[355219691,1741023044177,-211.511467,0.00022665,7]
[355219693,1741023044186,-211.511467,0.00022665,7]
[355219695,1741023044196,-500.0,0.00022665,2]
[355219697,1741023044205,-212.935227,0.00022666,7]
[355219699,1741023044215,-151.0,0.00022666,7]
[355219701,1741023044223,-799.77,0.00022666,2]
[355219703,1741023044233,-518.14821111,0.00022667,2]
[355219705,1741023044242,-500.0,0.00022667,2]
[355219707,1741023044252,-500.0,0.00022667,2]
[355219709,1741023044261,-500.0,0.00022667,2]
[355219711,1741023044271,-500.0,0.00022667,2]
[355219713,1741023044280,-504.00068672,0.00022667,2]
[355219715,1741023044289,-501.62871989,0.00022667,2]
[355219717,1741023044299,-500.0,0.00022667,2]
[355219719,1741023044309,-500.0,0.00022667,2]
[355219721,1741023044318,-502.786243,0.00022667,2]
[355219723,1741023044327,-507.22988012,0.00022667,2]
[355219725,1741023044339,-500.0,0.00022667,2]
[355219727,1741023044348,-502.05708543,0.00022667,2]
[355219729,1741023044357,-500.0,0.00022667,2]
[355219731,1741023044366,-501.1935147,0.00022667,2]
[355219733,1741023044375,-500.92530093,0.00022667,2]
[355219735,1741023044385,-502.58089137,0.00022667,2]
[355219737,1741023044394,-501.63420572,0.00022667,2]
[355219739,1741023044403,-500.78159534,0.00022667,2]
[355219741,1741023044413,-505.3001398,0.00022667,2]
[355219743,1741023044422,-505.07885002,0.00022667,2]
[355219745,1741023044431,-500.0,0.00022667,14]
[355219747,1741023044440,-502.17720729,0.00022667,2]
[355219749,1741023044449,-500.0,0.00022667,2]
[355219751,1741023044458,-500.0,0.00022667,2]
[355219753,1741023044467,-500.0,0.00022667,2]
[355219755,1741023044477,-503.37887939,0.00022667,2]
[355219757,1741023044486,-500.0,0.00022667,2]
[355219759,1741023044495,-500.0,0.00022667,2]
[355219761,1741023044504,-506.81571065,0.00022667,2]
[355219763,1741023044514,-500.0,0.00022667,2]
[355219765,1741023044523,-500.0,0.00022667,2]
[355219767,1741023044533,-500.0,0.00022667,2]
[355219769,1741023044542,-337.05420734,0.00022667,2]
[355219956,1741023152011,150.0,0.00020565,2]
[355219970,1741023453678,150.0,0.00020565,2]
[355219990,1741023761293,3000.0,0.00021,7]
[355220041,1741024233786,-300.0,0.00021366,2]
[355220042,1741024233796,-2450.0,0.00021367,2]
[355220056,1741024238882,-7831.1384486,0.00021367,2]
[355220057,1741024238893,-233.340904,0.00021918,2]
[355220058,1741024238903,-276.56893282,0.00021973,2]
[355220059,1741024238914,-500.0,0.00021973,2]
[355220060,1741024238925,-500.38861504,0.00021973,2]
[355220061,1741024238935,-500.0,0.00021973,2]
[355220062,1741024238945,-500.0,0.00021973,2]
[355220063,1741024239174,-500.0,0.00021973,2]
[355220064,1741024239185,-501.93329769,0.00021973,2]
[355220065,1741024239196,-609.40605544,0.00021973,2]
[355220066,1741024239206,-501.97915137,0.00021973,2]
[355220067,1741024239217,-285.11917459,0.00021973,2]
[355220068,1741024239227,-451.76044173,0.00021973,2]
[355220069,1741024239237,-500.0,0.00021973,2]